fUSD/lending_fUSD_20240818
["ID","MTS","AMOUNT","RATE_DAILY","PERIOD"]
[335182839,1723943781221,1000.0,9.664e-05,2]
[335182840,1723943791793,5128.06,9.664e-05,2]
[335182841,1723943835281,1900.0,9.001e-05,2]
[335182842,1723943835314,510.9071864,9.821e-05,2]
[335182843,1723943835353,500.0,8.742e-05,2]
[335182844,1723943835786,1900.0,9.531e-05,2]
[335182845,1723943835842,500.0,9.468e-05,2]
[335182846,1723943836207,800.0,8.457e-05,2]
[335182847,1723943836370,500.0,9.576e-05,2]
[335182848,1723943836716,800.0,8.93e-05,2]
[335182849,1723943836905,1900.0,9.553e-05,2]
[335182850,1723943837189,800.0,9.057e-05,2]
[335182851,1723943837692,800.0,9.244e-05,2]
[335182852,1723943840393,500.0,9.83e-05,2]
[335182853,1723943842797,500.0,9.24e-05,2]
[335182854,1723943843259,500.0,9.292e-05,2]
[335182855,1723943843300,500.0,9.875e-05,2]
[335182856,1723943845603,500.0,9.265e-05,2]
[335182857,1723943845906,500.0,8.814e-05,2]
[335182858,1723943846416,500.0,9.201e-05,2]
[335182859,1723943846888,500.0,9.361e-05,2]
[335182860,1723943847293,500.0,8.83e-05,2]
[335182861,1723943850013,500.0,9.077e-05,2]
[335182862,1723943850084,1900.0,9.07e-05,2]
[335182863,1723943850517,500.0,9.79e-05,2]
[335182864,1723943850588,1900.0,9.497e-05,2]
[335182865,1723943851062,1900.0,9.932e-05,2]
[335182866,1723943991515,177.35,9.574e-05,2]
[335182868,1723944136219,700.0,8.563e-05,2]
[335182869,1723944136249,1700.0,8.858e-05,2]
[335182870,1723944136378,500.0,9.529e-05,2]
[335182871,1723944136729,1700.0,9.478e-05,2]
[335182872,1723944140933,500.0,9.492e-05,2]
[335182873,1723944143573,500.0,9.455e-05,2]
[335182874,1723944143798,500.0,9.752e-05,2]
[335182875,1723944144014,500.0,8.577e-05,2]
[335182876,1723944144536,500.0,8.946e-05,2]
[335182877,1723944145040,500.0,8.999e-05,2]
[335182878,1723944145510,500.0,9.324e-05,2]
[335182879,1723944147047,500.0,8.591e-05,2]
[335182880,1723944147216,555.99887697,8.765e-05,2]
[335182881,1723944148853,500.0,8.689e-05,2]
[335182882,1723944149922,500.0,9.88e-05,2]
[335182883,1723944150146,500.0,8.479e-05,2]
[335182884,1723944150640,500.0,8.616e-05,2]
[335182885,1723944152706,1700.0,8.896e-05,2]
[335182886,1723944153029,500.0,8.582e-05,2]
[335182887,1723944252724,200.0,9.517e-05,2]
[335182888,1723944275194,3228.58,9.515e-05,2]
[335182889,1723944352201,438.28,9.51e-05,2]
[335182891,1723944413662,580.01,8.219e-05,2]
[335182892,1723944417825,415.01059966,9.943e-05,2]
[335182900,1723944435319,1600.0,8.674e-05,2]
[335182901,1723944435541,500.0,8.884e-05,2]
[335182902,1723944435799,1600.0,8.722e-05,2]
[335182903,1723944435942,500.0,9.232e-05,2]
[335182904,1723944436161,700.0,8.87e-05,2]
[335182905,1723944436683,1600.0,8.981e-05,2]
[335182906,1723944436728,700.0,9.053e-05,2]
[335182907,1723944436970,1600.0,9.802e-05,2]
[335182909,1723944437169,700.0,9.15e-05,2]
[335182910,1723944437669,700.0,9.231e-05,2]
[335182911,1723944438159,700.0,9.278e-05,2]
[335182912,1723944438631,700.0,9.354e-05,2]
[335182913,1723944441080,500.0,8.634e-05,2]
[335182914,1723944443630,1700.0,8.603e-05,2]
[335182915,1723944443811,500.0,8.669e-05,2]
[335182916,1723944444964,500.0,9.65e-05,2]
[335182917,1723944445443,500.0,9.728e-05,2]
[335182918,1723944445962,500.0,9.339e-05,2]
[335182919,1723944445992,500.0,9.871e-05,2]
[335182920,1723944446475,500.0,9.977e-05,2]
[335182921,1723944446603,500.0,8.732e-05,2]
[335182922,1723944447099,500.0,9.42e-05,2]
[335182923,1723944447594,500.0,9.765e-05,2]
[335182932,1723944499263,177.35,9.599e-05,2]
[335182953,1723944631940,-550.0,0.0001,2]
[335182954,1723944631950,-173.15774171,0.00010018,2]
[335182955,1723944631959,-500.0,0.00010118,2]
[335182956,1723944631968,-500.0,0.00010133,2]
[335182957,1723944631978,-1700.0,0.00010138,2]
[335182958,1723944631989,-500.0,0.00010164,2]
[335182959,1723944631998,-345.81242499,0.00010177,2]
[335182960,1723944632009,-154.18757501,0.00010177,2]
[335182961,1723944632019,-133.18581001,0.00010205,2]
[335182962,1723944632030,-366.81418999,0.00010205,2]
[335182963,1723944632039,-500.0,0.00010264,2]
[335182964,1723944632048,-499.99,0.00010264,2]
[335182965,1723944632059,-150.99,0.00010276,2]
[335182966,1723944632068,-10.55684246,0.00010276,2]
[335182967,1723944632078,-489.2557535,0.00010276,2]
[335182968,1723944632105,-301.67740404,0.00010276,2]
[335182969,1723944632114,-5.82259596,0.00010412,2]
[335182970,1723944632126,-494.17740404,0.00010412,2]
[335182971,1723944632135,-121.59311596,0.00010434,2]
[335182972,1723944632146,-178.40688404,0.00010434,2]
[335182973,1723944632155,-318.36311596,0.00010435,2]
[335182974,1723944632167,-2823.13274581,0.00010435,2]
[335182975,1723944632177,-413.47322908,0.00010435,2]
[335182976,1723944632188,-2006.53950915,0.00010435,2]
[335182977,1723944632198,-463.70346582,0.00010435,2]
[335182978,1723944632209,-679.88843418,0.00010435,2]
[335182979,1723944632218,-580.01,0.00010452,2]
[335182980,1723944632227,-155.0,0.00010471,2]
[335182981,1723944632238,-835.81,0.000105,2]
[335182982,1723944632247,-700.0,0.000105,2]
[335182983,1723944632256,-1136.82528687,0.00010515,2]
[335182984,1723944632291,-463.17471313,0.00010515,2]
[335182985,1723944632299,-150.0,0.00010534,2]
[335182986,1723944632308,-164.32128287,0.00010535,2]
[335182987,1723944632319,-335.67871713,0.00010535,2]
[335182988,1723944632328,-1427.2642288,0.00010535,2]
[335182989,1723944632339,-8770.3115774,0.00010535,2]
[335182990,1723944632350,-5089.15586786,0.00010535,2]
[335182991,1723944632363,-2852.934479,0.00010535,2]
[335182992,1723944632374,-521.44331218,0.00010535,2]
[335182993,1723944632384,-493.34582291,0.00010535,2]
[335183012,1723944637829,-1042.84704651,0.00010535,2]
[335183013,1723944637841,-771.44285113,0.00010535,2]
[335183014,1723944637852,-442.25,0.00010535,2]
[335183015,1723944637863,-3861.57904239,0.00010535,2]
[335183016,1723944637965,-763.71383873,0.00010535,2]
[335183017,1723944637978,-307.07755376,0.00010535,2]
[335183018,1723944638165,-5213.2416444,0.00010535,2]
[335183019,1723944638177,-7848.64233493,0.00010535,2]
[335183020,1723944638187,-553.9471,0.00010535,2]
[335183021,1723944638196,-1654.99056507,0.00010535,2]
[335183022,1723944638207,-515.28705452,0.00010535,2]
[335183023,1723944638218,-1134.70787623,0.00010535,2]
[335183024,1723944638229,-1167.56978197,0.00010535,2]
[335183026,1723944638241,-39646.53499629,0.00010535,2]
[335183028,1723944638252,-4830.05462,0.00010535,2]
[335183031,1723944638266,-7310.16588606,0.00010535,2]
[335183032,1723944638277,-35849.47465954,0.00010535,2]
[335183033,1723944638288,-4852.6012,0.00010535,2]
[335183034,1723944638299,-10535.96684458,0.00010535,2]
[335183035,1723944638309,-6440.31427744,0.00010535,2]
[335183036,1723944638320,-1248.82727493,0.00010535,2]
[335183037,1723944638331,-6275.43492292,0.00010535,2]
[335183038,1723944638341,-19137.89899619,0.00010535,2]
[335183039,1723944640057,-155.0,0.00010097,2]
[335183040,1723944640066,-167.85018007,0.00010535,2]
[335183041,1723944640078,-307.46014093,0.00010535,2]
[335183042,1723944640220,-540.18000005,0.00010535,2]
[335183043,1723944640231,-1079.800005,0.00010535,2]
[335183044,1723944640245,-267.58574982,0.00010535,2]
[335183045,1723944640256,-5520.4318433,0.00010535,2]
[335183046,1723944640362,-17049.04648691,0.00010535,2]
[335183047,1723944640375,-680.67,0.00010535,2]
[335183048,1723944640388,-1809.41,0.00010535,2]
[335183049,1723944640399,-2352.05509603,0.00010535,2]
[335183050,1723944640410,-503.4787228,0.00010535,2]
[335183051,1723944640501,-3593.08737091,0.00010535,2]
[335183052,1723944640512,-347.78074878,0.00010535,2]
[335183053,1723944640523,-24104.6103854,0.00010535,2]
[335183058,1723944642904,-18770.31446622,0.00010535,2]
[335183063,1723944643036,-630.18302999,0.00010535,2]
[335183064,1723944643047,-453.60589958,0.00010535,2]
[335183065,1723944643167,-297.59077079,0.00010535,2]
[335183066,1723944643178,-883.32723249,0.00010535,2]
[335183067,1723944643189,-25041.70291519,0.00010535,2]
[335183068,1723944643199,-1969.32046442,0.00010535,2]
[335183069,1723944643210,-311.308985,0.00010535,2]
[335183073,1723944644156,-398.68855058,0.00010535,2]
[335183074,1723944644166,-421.26,0.00010541,2]
[335183075,1723944644175,-975.26,0.00010541,2]
[335183076,1723944644185,-421.26,0.00010541,2]
[335183077,1723944644194,-421.26,0.00010541,2]
[335183078,1723944644203,-57.07290377,0.00010574,2]
[335183079,1723944644215,-1542.92709623,0.00010574,2]
[335183080,1723944644224,-500.0,0.00010574,2]
[335183081,1723944644234,-150.0,0.00010578,2]
[335183082,1723944644244,-356.71,0.00010578,2]
[335183083,1723944644253,-537.25,0.000106,2]
[335183084,1723944644262,-361.07,0.000106,2]
[335183085,1723944644272,-852.82,0.00010678,2]
[335183086,1723944644281,-150.0,0.00010678,2]
[335183087,1723944644291,-531.27,0.00010678,2]
[335183088,1723944644300,-356.55,0.00010678,2]
[335183089,1723944644310,-416.33,0.00010678,2]
[335183090,1723944644319,-323.13,0.00010678,2]
[335183091,1723944644328,-150.0,0.00010678,2]
[335183092,1723944644338,-150.0,0.00010678,2]
[335183093,1723944644347,-531.27,0.00010678,2]
[335183094,1723944644356,-150.0,0.00010678,2]
[335183095,1723944644366,-531.27,0.00010678,2]
[335183096,1723944644375,-150.0,0.00010678,2]
[335183097,1723944644385,-500.0,0.00010684,2]
[335183098,1723944644395,-500.0,0.00010684,2]
[335183099,1723944644404,-500.0,0.00010684,2]
[335183100,1723944644413,-208.45459846,0.00010684,2]
[335183101,1723944644423,-500.0,0.00010684,2]
[335183102,1723944644438,-500.0,0.00010689,2]
[335183103,1723944644449,-356.71,0.000107,2]
[335183104,1723944644460,-150.0,0.000107,2]
[335183105,1723944644470,-835.81,0.000107,2]
[335183106,1723944644483,-150.0,0.000107,2]
[335183107,1723944644495,-835.81,0.000107,2]
[335183108,1723944644507,-817.93,0.000107,2]
[335183109,1723944644516,-150.0,0.000107,2]
[335183110,1723944644526,-356.71,0.000107,2]
[335183111,1723944644535,-531.27,0.000107,2]
[335183112,1723944644545,-150.0,0.000107,2]
[335183113,1723944644555,-531.27,0.000107,2]
[335183114,1723944644564,-494.51,0.000107,2]
[335183115,1723944644574,-356.71,0.000107,2]
[335183116,1723944644583,-356.71,0.000107,2]
[335183117,1723944644593,-531.27,0.000107,2]
[335183118,1723944644602,-531.27,0.000107,2]
[335183119,1723944644611,-356.71,0.000107,2]
[335183120,1723944644620,-200.0,0.00010706,2]
[335183121,1723944644629,-500.0,0.00010715,2]
[335183122,1723944644638,-150.0,0.00010726,2]
[335183123,1723944644647,-150.0,0.00010729,2]
[335183124,1723944644657,-150.0,0.00010733,2]
[335183125,1723944644666,-150.0,0.00010734,2]
[335183126,1723944644676,-150.0,0.00010737,2]
[335183127,1723944644685,-150.0,0.00010738,2]
[335183128,1723944644695,-150.0,0.00010738,2]
[335183129,1723944644704,-150.0,0.00010742,2]
[335183130,1723944644713,-150.0,0.00010742,2]
[335183131,1723944644722,-150.0,0.00010744,2]
[335183132,1723944644732,-150.0,0.00010746,2]
[335183133,1723944644742,-150.0,0.00010746,2]
[335183134,1723944644751,-150.0,0.00010756,2]
[335183135,1723944644762,-150.0,0.0001076,2]
[335183136,1723944644771,-150.0,0.0001076,2]
[335183137,1723944644780,-150.0,0.00010762,2]
[335183138,1723944644789,-150.0,0.00010764,2]
[335183139,1723944644798,-150.0,0.00010766,2]
[335183140,1723944644807,-150.0,0.00010767,2]
[335183141,1723944644817,-150.0,0.00010768,2]
[335183142,1723944644826,-150.0,0.00010777,2]
[335183143,1723944644835,-150.0,0.00010778,2]
[335183144,1723944644844,-150.0,0.0001078,2]
[335183145,1723944644854,-150.0,0.0001078,2]
[335183146,1723944644863,-150.0,0.0001078,2]
[335183147,1723944644872,-150.0,0.00010782,2]
[335183148,1723944644882,-150.0,0.00010784,2]
[335183149,1723944644891,-500.0,0.00010786,2]
[335183150,1723944644900,-1500.0,0.00010789,2]
[335183151,1723944644909,-150.0,0.0001079,2]
[335183152,1723944644918,-150.0,0.00010798,2]
[335183153,1723944644928,-150.0,0.00010799,2]
[335183154,1723944644937,-150.0,0.00010799,2]
[335183155,1723944644946,-150.0,0.000108,2]
[335183156,1723944644956,-150.0,0.00010802,2]
[335183157,1723944644965,-1500.0,0.00010806,2]
[335183158,1723944644974,-150.0,0.00010808,2]
[335183159,1723944644983,-150.0,0.00010809,2]
[335183160,1723944644992,-150.0,0.0001081,2]
[335183161,1723944645002,-150.0,0.00010822,2]
[335183162,1723944645011,-700.0,0.00010823,2]
[335183163,1723944645020,-150.0,0.00010832,2]
[335183164,1723944645030,-150.0,0.00010839,2]
[335183165,1723944645039,-150.0,0.0001084,2]
[335183166,1723944645048,-150.0,0.00010842,2]
[335183167,1723944645057,-150.0,0.00010845,2]
[335183168,1723944645066,-150.0,0.00010845,2]
[335183169,1723944645075,-150.0,0.00010847,2]
[335183170,1723944645084,-150.0,0.00010848,2]
[335183171,1723944645094,-1500.0,0.00010848,2]
[335183172,1723944645103,-150.0,0.00010851,2]
[335183173,1723944645112,-150.0,0.00010851,2]
[335183174,1723944645121,-150.0,0.00010853,2]
[335183175,1723944645130,-150.0,0.00010853,2]
[335183176,1723944645139,-500.0,0.00010856,2]
[335183177,1723944645148,-150.0,0.00010859,2]
[335183178,1723944645157,-150.0,0.00010861,2]
[335183179,1723944645167,-1700.0,0.00010861,2]
[335183180,1723944645176,-150.0,0.00010862,2]
[335183181,1723944645186,-150.0,0.00010867,2]
[335183182,1723944645195,-150.0,0.00010869,2]
[335183183,1723944645204,-150.0,0.0001087,2]
[335183184,1723944645214,-150.0,0.0001087,2]
[335183185,1723944645223,-150.0,0.00010871,2]
[335183186,1723944645232,-1000.0,0.00010871,2]
[335183187,1723944645242,-150.0,0.0001088,2]
[335183188,1723944645252,-150.0,0.00010883,2]
[335183189,1723944645261,-150.0,0.00010885,2]
[335183190,1723944645270,-150.0,0.00010885,2]
[335183191,1723944645279,-150.0,0.00010885,2]
[335183192,1723944645289,-150.0,0.00010886,2]
[335183193,1723944645298,-150.0,0.0001089,2]
[335183194,1723944645308,-587.83141,0.0001089,2]
[335183195,1723944645317,-204.3760443,0.0001089,2]
[335183196,1723944645326,-326.81458476,0.0001089,2]
[335183197,1723944645335,-150.0,0.00010892,2]
[335183198,1723944645345,-150.0,0.00010893,2]
[335183199,1723944645354,-150.0,0.00010899,2]
[335183200,1723944645363,-175.79965572,0.00010899,2]
[335183201,1723944645372,-170.57147776,0.000109,2]
[335183202,1723944645382,-168.8587113,0.000109,2]
[335183203,1723944645392,-637.82048891,0.000109,2]
[335183204,1723944645402,-150.0,0.000109,2]
[335183205,1723944645411,-175.79965571,0.000109,2]
[335183206,1723944645420,-150.0,0.00010908,2]
[335183207,1723944645434,-150.0,0.00010909,2]
[335183208,1723944645450,-150.0,0.0001091,2]
[335183209,1723944645459,-150.0,0.00010912,2]
[335183210,1723944645468,-150.0,0.00010914,2]
[335183211,1723944645477,-150.0,0.00010914,2]
[335183212,1723944645487,-150.0,0.00010915,2]
[335183213,1723944645497,-150.0,0.00010915,2]
[335183214,1723944645506,-150.0,0.00010916,2]
[335183215,1723944645515,-150.0,0.00010918,2]
[335183216,1723944645525,-150.0,0.00010918,2]
[335183217,1723944645534,-150.0,0.0001092,2]
[335183218,1723944645543,-150.0,0.00010922,2]
[335183219,1723944645553,-150.0,0.00010923,2]
[335183220,1723944645562,-500.0,0.00010926,2]
[335183221,1723944645571,-150.0,0.00010931,2]
[335183222,1723944645581,-150.0,0.00010935,2]
[335183223,1723944645590,-150.0,0.00010936,2]
[335183224,1723944645600,-500.0,0.00010936,2]
[335183225,1723944645610,-150.0,0.00010938,2]
[335183226,1723944645619,-150.0,0.00010943,2]
[335183227,1723944645629,-150.0,0.00010944,2]
[335183228,1723944645639,-857.0,0.00010946,2]
[335183229,1723944645649,-150.0,0.00010946,2]
[335183230,1723944645659,-150.0,0.00010947,2]
[335183231,1723944645669,-150.0,0.00010948,2]
[335183232,1723944645679,-150.0,0.00010953,2]
[335183233,1723944645688,-150.0,0.00010954,2]
[335183234,1723944645698,-844.7,0.00010959,2]
[335183235,1723944645708,-250.0,0.00010959,2]
[335183236,1723944645717,-150.0,0.00010959,2]
[335183237,1723944645727,-271.74656716,0.0001096,2]
[335183238,1723944645736,-275.08,0.00010965,2]
[335183239,1723944645747,-150.0,0.00010965,2]
[335183240,1723944645757,-1500.0,0.00010965,2]
[335183241,1723944645766,-150.0,0.0001097,2]
[335183242,1723944645776,-150.0,0.00010972,2]
[335183243,1723944645786,-150.0,0.00010972,2]
[335183244,1723944645795,-200.0,0.00010973,2]
[335183245,1723944645805,-150.0,0.00010973,2]
[335183246,1723944645814,-150.0,0.00010975,2]
[335183247,1723944645823,-150.0,0.00010979,2]
[335183248,1723944645832,-150.0,0.00010984,2]
[335183249,1723944645842,-6904.91570274,0.00010985,2]
[335183250,1723944645851,-1137.0,0.00010987,2]
[335183251,1723944645860,-810.0,0.00010987,2]
[335183252,1723944645869,-446.0,0.00010987,2]
[335183253,1723944645878,-551.0,0.00010987,2]
[335183254,1723944645887,-3318.0,0.00010987,2]
[335183255,1723944645897,-247.0,0.00010987,2]
[335183256,1723944645907,-1076.0,0.00010987,2]
[335183257,1723944645916,-1924.0,0.00010987,2]
[335183258,1723944645926,-5851.887,0.00010987,2]
[335183259,1723944645935,-623.753,0.00010987,2]
[335183262,1723944645944,-3726.0,0.00010987,2]
[335183264,1723944645953,-1547.278,0.00010987,2]
[335183265,1723944645963,-1677.674,0.00010987,2]
[335183267,1723944645972,-306860.90454681,0.0001099,2]
[335183282,1723944646566,-321.56691331,0.000106,2]
[335183283,1723944646578,-816.19308669,0.000106,2]
[335183284,1723944646587,-350.44,0.000106,2]
[335183285,1723944646598,-150.0,0.00010728,2]
[335183286,1723944646608,-150.0,0.00010735,2]
[335183287,1723944646617,-150.0,0.00010739,2]
[335183288,1723944646627,-150.0,0.00010743,2]
[335183289,1723944646636,-150.0,0.00010746,2]
[335183290,1723944646646,-150.0,0.00010752,2]
[335183291,1723944646655,-150.0,0.00010758,2]
[335183292,1723944646664,-150.0,0.00010761,2]
[335183293,1723944646673,-150.0,0.00010762,2]
[335183294,1723944646683,-150.0,0.0001077,2]
[335183295,1723944646692,-150.0,0.00010787,2]
[335183296,1723944646701,-150.0,0.0001079,2]
[335183297,1723944646711,-40.16971331,0.00010803,2]
[335183298,1723944646723,-109.83028669,0.00010803,2]
[335183299,1723944646732,-150.0,0.00010804,2]
[335183300,1723944646741,-150.0,0.00010809,2]
[335183301,1723944646750,-150.0,0.00010816,2]
[335183302,1723944646759,-150.0,0.00010818,2]
[335183303,1723944646769,-150.0,0.00010821,2]
[335183304,1723944646778,-150.0,0.00010824,2]
[335183305,1723944646787,-150.0,0.00010849,2]
[335183306,1723944646796,-150.0,0.00010854,2]
[335183307,1723944646806,-150.0,0.00010859,2]
[335183308,1723944646815,-150.0,0.0001086,2]
[335183309,1723944646824,-150.0,0.00010865,2]
[335183310,1723944646833,-150.0,0.0001088,2]
[335183311,1723944646843,-71.52324331,0.0001088,2]
[335183312,1723944646854,-78.47675669,0.0001088,2]
[335183313,1723944646863,-150.0,0.00010894,2]
[335183314,1723944646873,-150.0,0.00010915,2]
[335183315,1723944646882,-150.0,0.00010917,2]
[335183316,1723944646892,-150.0,0.00010925,2]
[335183317,1723944646902,-150.0,0.00010931,2]
[335183318,1723944646911,-150.0,0.00010932,2]
[335183319,1723944646920,-150.0,0.00010936,2]
[335183320,1723944646929,-150.0,0.00010937,2]
[335183321,1723944646938,-150.0,0.00010949,2]
[335183322,1723944646947,-150.0,0.00010987,2]
[335183323,1723944646956,-1208.342,0.00010987,2]
[335183324,1723944646965,-12105.79494131,0.0001099,2]
[335183325,1723944647002,-150.0,0.00010737,2]
[335183326,1723944647012,-150.0,0.00010835,2]
[335183327,1723944647021,-150.0,0.00010853,2]
[335183328,1723944647030,-150.0,0.00010878,2]
[335183329,1723944647039,-150.0,0.000109,2]
[335183330,1723944647048,-925.2,0.0001099,2]
[335183331,1723944647059,-3337.89376783,0.0001099,2]
[335183332,1723944734094,5644.5,9.885e-05,2]
[335183333,1723944740273,1300.0,9.416e-05,2]
[335183334,1723944740318,500.0,8.714e-05,2]
[335183335,1723944740347,500.0,8.951e-05,2]
[335183336,1723944740658,500.0,8.979e-05,2]
[335183337,1723944741122,1300.0,9.97e-05,2]
[335183338,1723944741155,500.0,9.644e-05,2]
[335183339,1723944745717,500.0,9.437e-05,2]
[335183340,1723944746233,500.0,9.592e-05,2]
[335183341,1723944746748,500.0,9.649e-05,2]
[335183342,1723944748346,500.0,9.824e-05,2]
[335183343,1723944749218,500.0,8.55e-05,2]
[335183344,1723944749364,500.0,9.663e-05,2]
[335183345,1723944750229,500.0,8.904e-05,2]
[335183346,1723944751936,500.0,9.523e-05,2]
[335183347,1723944754839,1500.0,8.784e-05,2]
[335183348,1723944755000,155.17218351,9.316e-05,2]
[335183349,1723944755164,708.41621717,9.241e-05,2]
[335183350,1723944755282,500.0,9.307e-05,2]
[335183351,1723944755348,1500.0,9.434e-05,2]
[335183352,1723944755765,500.0,9.946e-05,2]
[335183353,1723944756640,500.0,9.359e-05,2]
[335183354,1723944757124,500.0,9.457e-05,2]
[335183355,1723944757519,500.0,9.462e-05,2]
[335183356,1723944768443,880.0,9.855e-05,2]
[335183357,1723944770209,8113.72,9.855e-05,2]
[335183362,1723944875689,566.78,8.219e-05,2]
[335183368,1723944934984,173.04,9.835e-05,2]
[335183369,1723945035650,1200.0,8.861e-05,2]
[335183370,1723945035982,1200.0,8.946e-05,2]
[335183371,1723945036012,500.0,8.897e-05,2]
[335183372,1723945036271,500.0,8.473e-05,2]
[335183373,1723945036461,1200.0,9.084e-05,2]
[335183374,1723945036497,500.0,9.774e-05,2]
[335183375,1723945039091,500.0,9.145e-05,2]
[335183376,1723945040163,500.0,9.125e-05,2]
[335183377,1723945041053,500.0,9.479e-05,2]
[335183379,1723945045213,959.24653524,8.586e-05,2]
[335183381,1723945048618,500.0,9.416e-05,2]
[335183382,1723945049384,500.0,9.225e-05,2]
[335183383,1723945049490,500.0,8.698e-05,2]
[335183384,1723945049971,500.0,9.858e-05,2]
[335183385,1723945050783,500.0,8.613e-05,2]
[335183386,1723945051258,500.0,9.337e-05,2]
[335183387,1723945051715,500.0,9.828e-05,2]
[335183388,1723945052299,500.0,9.466e-05,2]
[335183389,1723945052989,500.0,8.592e-05,2]
[335183390,1723945053462,500.0,9.347e-05,2]
[335183391,1723945053957,1400.0,8.574e-05,2]
[335183392,1723945054296,1400.0,8.884e-05,2]
[335183393,1723945054775,1400.0,9.098e-05,2]
[335183394,1723945055254,1400.0,9.617e-05,2]
[335183395,1723945059732,155.43560755,9.835e-05,2]
[335183396,1723945091182,723.58094,9.95e-05,2]
[335183398,1723945206720,400.0,9.862e-05,2]
[335183399,1723945231479,921.92,9.858e-05,2]
[335183400,1723945335940,1100.0,8.815e-05,2]
[335183401,1723945336578,1100.0,8.833e-05,2]
[335183402,1723945336917,1100.0,9.076e-05,2]
[335183403,1723945338161,1100.0,9.825e-05,2]
[335183404,1723945338666,1100.0,9.965e-05,2]
[335183405,1723945339322,500.0,8.51e-05,2]
[335183406,1723945339806,500.0,8.75e-05,2]
[335183407,1723945340841,500.0,9.499e-05,2]
[335183408,1723945341365,500.0,9.59e-05,2]
[335183409,1723945342170,296.0,9.843e-05,2]
[335183410,1723945343983,500.0,8.831e-05,2]
[335183411,1723945348261,500.0,8.605e-05,2]
[335183412,1723945348509,500.0,9.492e-05,2]
[335183413,1723945348556,500.0,9.412e-05,2]
[335183414,1723945348734,500.0,9.363e-05,2]
[335183415,1723945349202,500.0,9.414e-05,2]
[335183416,1723945349705,500.0,9.759e-05,2]
[335183417,1723945350840,500.0,8.874e-05,2]
[335183418,1723945352322,1200.0,8.664e-05,2]
[335183419,1723945352366,500.0,9.788e-05,2]
[335183420,1723945372447,500.0,9.835e-05,2]
[335183421,1723945384723,562.08,8.219e-05,2]
[335183422,1723945440718,7467.12,9.829e-05,2]
[335183424,1723945591117,150.66621158,9.888e-05,2]
[335183433,1723945635602,500.0,9.727e-05,2]
[335183434,1723945635687,500.0,9.531e-05,2]
[335183436,1723945636277,900.0,8.556e-05,2]
[335183437,1723945636555,500.0,8.481e-05,2]
[335183438,1723945636752,900.0,9.3e-05,2]
[335183439,1723945637029,500.0,9.302e-05,2]
[335183442,1723945637239,900.0,9.343e-05,2]
[335183443,1723945637710,900.0,9.512e-05,2]
[335183444,1723945638194,900.0,9.573e-05,2]
[335183445,1723945643585,500.0,8.782e-05,2]
[335183446,1723945643790,512.89840163,9.695e-05,2]
[335183447,1723945646216,500.0,9.314e-05,2]
[335183448,1723945647980,500.0,9.62e-05,2]
[335183449,1723945648434,500.0,9.912e-05,2]
[335183450,1723945650516,1200.0,8.933e-05,2]
[335183453,1723945804995,763.2,9.776e-05,2]